Cogmind - Beta 16 @@@ ROGUE MODE // 2025.11.28 @ 13:02:08 Player: shapeshifter Result: Destroyed by G-34 Mercenary with Small Laser Performance ------------- Evolutions (0) 0 Regions Visited (2) 400 Robots Destroyed (33) 165 Value Destroyed (843) 843 Prototype IDs (0) 0 Alien Tech Used (0) 0 Bonus (-33) -33 TOTAL SCORE: 1375 Bonus ------- Follower Combat Kills 21 Friendly Fire -54 Cogmind --------- Core Integrity 0/250 Matter 300/300 Energy 290/290 System Corruption 0% Temperature Cool (6) Movement Treading (240) Ox1 Location -10/Mines Parts ------- > --- POWER (1) -------- Improved Deuterium Engine > --- PROPULSION (2) --- Light Treads > --- UTILITY (2) ------ Cooling System Large Storage Unit > --- WEAPON (2) ------- (None) > --- INVENTORY (15) --- Light Ion Engine Advanced Heat Sink Cooling System Cooling System Cooling System YI-UF0's Bottomless Matter Pit Experimental Sensor Array Improved Terrain Scanner Seismic Detector ECM Suite Hacking Suite Trap Extractor (0/4) Trap Extractor (0/4) Trap Extractor (0/4) Trap Extractor (0/4) Peak State ------------ > --- POWER ------------ Improved Deuterium Engine > --- PROPULSION ------- Light Treads Compact Wheel > --- UTILITY ---------- Cooling System Large Storage Unit > --- WEAPON ----------- Particle Gun Particle Gun > --- INVENTORY -------- Light Ion Engine Advanced Heat Sink Cooling System Cooling System Cooling System YI-UF0's Bottomless Matter Pit Improved Terrain Scanner Seismic Detector ECM Suite Hacking Suite Trap Extractor Trap Extractor Trap Extractor Trap Extractor [Rating: 16] Favorites ----------- Power Light Ion Engine Engine Light Ion Engine Power Core Light Nuclear Core Propulsion Light Treads Treads Light Treads Wheel Compact Wheel Utility Large Storage Unit Device Cooling System Storage Large Storage Unit Weapon Particle Gun Energy Gun Particle Gun Ballistic Gun Assault Rifle Build | -11 -10 -10 ------- Run | Yrd Mat Min Slots Evolved . | . . . Power . | . . . Propulsion . | . . . Utility . | . . . Weapon . | . . . Parts Attached 20 | 7 8 5 Power 5 | 1 2 2 Engine 4 | 1 1 2 Core 1 | . 1 . Reactor . | . . . Propulsion 4 | 2 . 2 Treads 2 | 2 . . Leg . | . . . Wheel 2 | . . 2 Hover . | . . . Flight . | . . . Utility 5 | 2 3 . Device 3 | 1 2 . Storage 2 | 1 1 . Processor . | . . . Hackware . | . . . Protection . | . . . Artifact . | . . . Weapon 6 | 2 3 1 Energy Gun 5 | 1 3 1 Energy Cannon . | . . . Ballistic Gun 1 | 1 . . Ballistic Cannon . | . . . Launcher . | . . . Special Weapon . | . . . Impact Weapon . | . . . Slashing Weapon . | . . . Piercing Weapon . | . . . Special Melee Weapon . | . . . Unidentified Prototypes . | . . . Parts Lost 8 | . 1 7 Power 1 | . . 1 Propulsion 3 | . . 3 Utility . | . . . Weapon 4 | . 1 3 Highest Loss Streak 2 | . 1 2 To Critical Strikes . | . . . Average Backups 13 | 4 13 14 Power . | . 1 1 Propulsion 1 | 1 2 . Utility 9 | . 9 12 Weapon . | . 1 . Tool/Special . | . . . Unused Backups 17 | . 4 13 Power . | . . . Propulsion . | . . . Utility 15 | . 2 13 Weapon 2 | . 2 . Tool/Special . | . . . Average Slot Usage (%) 94 | . 99 86 Engine 10 | . 9 13 Core 3 | . 4 . Treads 21 | . 28 9 Wheel 3 | . . 8 Device 14 | . 14 14 Storage 14 | . 14 14 Energy Gun 25 | . 25 24 Ballistic Gun 1 | . 2 . Peak Build Rating 16 | 7 14 16 Average Rating 12 | 5 12 13 On Entrance 6 | . 7 12 Avg Prop Armor Cover (%) . | . . . Naked Turns . | . . . Heaviest Build 38 | 12 33 38 Greatest Support 40 | 40 40 40 Greatest Overweight (x) 1 | . . 1 Average Overweight (x) . | . . . Largest Inventory Capacity 15 | 8 15 15 Average Capacity 14 | 7 14 15 Most Carried 15 | 7 15 15 Average Carried 13 | 4 13 14 Final Capacity 15 | 8 15 15 Final Carried 15 | 6 15 15 Class Distribution -------------------- 100% | Mutant Dominant Class ---------------- Mutant | -10/Materials Mutant | -10/Mines Resources | -11 -10 -10 ----------- Run | Yrd Mat Min Matter Collected 483 | 318 110 55 Remotely . | . . . Salvage Created 1156 | 128 777 251 Parts 66 | 6 48 12 Haulers Intercepted 1 | . 1 . Recyclers Shooed . | . . . Parts Field Recycled . | . . . Retrieved Matter . | . . . Parts Self-Destructed . | . . . Prevented . | . . . Parts Restored . | . . . Kills | -11 -10 -10 ------- Run | Yrd Mat Min Combat Hostiles Destroyed 23 | . 18 5 Guns 23 | . 18 5 Classes Destroyed 9 | 2 7 . Builder 1 | . 1 . Tunneler 3 | 3 . . Hauler 1 | . 1 . Recycler 1 | 1 . . Operator 1 | . 1 . Watcher 3 | . 3 . Swarmer 3 | . 3 . Grunt 18 | . 14 4 Subdweller 1 | . 1 . Best Kill Streak 5 | 2 5 2 Combat Bots Only 4 | . 4 2 Max Kills in Single Turn 2 | 1 2 1 Gunslinging 1 | . 1 . Exploded . | . . . Melee . | . . . Uniques/NPCs Destroyed 1 | . . 1 YI-UF0 (-10/Mines) Combat | -11 -10 -10 -------- Run | Yrd Mat Min Hostile Shots Fired 120 | . 71 49 Missed 38 | . 20 18 Hits 82 | . 51 31 Projectile 82 | . 51 31 AOE 9 | . . 9 Critical Strikes 2 | . . 2 Damage Taken 1176 | . 603 573 Core 255 | . 141 114 Absorbed by Shields . | . . . Core Remaining (%) 100 | 100 . . Volleys Fired 92 | 16 47 29 Largest 2 | 2 2 2 Hottest 130 | 60 130 130 Shots Fired 180 | 32 92 56 Gun 180 | 32 92 56 Cannon . | . . . Launcher . | . . . Special . | . . . Kinetic 26 | 16 10 . Thermal 154 | 16 82 56 Explosive . | . . . Electromagnetic . | . . . Robot Hit Streak 12 | 12 7 8 Robot Miss Streak 3 | 2 3 2 Penetration Max . | . . . Secondary Targets 5 | . 4 1 Max Gunslinging Chain 1 | . 1 1 Shots Hit Robots 114 | 23 55 36 Core Hits 46 | 5 31 10 Critical Kills . | . . . Critical Parts Destroyed 1 | 1 . . Critical Strikes 3 | 1 . 2 Burn 2 | . . 2 Destroy 1 | 1 . . Melee Attacks . | . . . Impact . | . . . Slashing . | . . . Piercing . | . . . Sneak Attacks . | . . . Combat Hostiles . | . . . Follow-up Attacks . | . . . Damage Inflicted 1709 | 267 888 554 Guns 1709 | 267 888 554 Cannons . | . . . Explosions . | . . . Melee . | . . . Ramming . | . . . Kinetic 206 | 142 64 . Thermal 1503 | 125 824 554 Explosive . | . . . Electromagnetic . | . . . Impact . | . . . Slashing . | . . . Piercing . | . . . Highest Corruption . | . . . Average Corruption . | . . . Corruption Purged . | . . . Corruption Blocked . | . . . Overload Shots . | . . . Overflow Damage . | . . . Projectiles . | . . . Explosions . | . . . Melee . | . . . Knockbacks . | . . . Impact . | . . . Kinetic . | . . . Secondary . | . . . Self-Inflicted Damage . | . . . Shots . | . . . Rammed . | . . . Targets Rammed . | . . . Kicked . | . . . Crushed . | . . . Highest Temperature 90 | . 66 90 Average Temperature 25 | . 16 39 Received Heat Transfer 477 | . 276 201 Siege Activations . | . . . Martial Activations . | . . . Shielding Activations . | . . . Robots Disrupted . | . . . Combat Hostiles . | . . . Robots Corrupted . | . . . Combat Hostiles . | . . . Parts Fried . | . . . Impact Corruptions . | . . . Robots Melted . | . . . Combat Hostiles . | . . . Parts Melted 4 | . 2 2 Heat Transferred 3705 | 275 1950 1480 Parts Sabotaged . | . . . Parts Stolen . | . . . Parts Stripped . | . . . Power Chain Reactions . | . . . Alert | -11 -10 -10 ------- Run | Yrd Mat Min Maximum Alert Level 1 | . 1 . Low Security (%) 91 | 100 85 100 Level 1 8 | . 14 . Level 2 . | . . . Level 3 . | . . . Level 4 . | . . . Level 5 . | . . . High Security . | . . . Max Security . | . . . Peak Influence 261 | 10 261 76 Initial 46 | . . 46 Average 77 | . 124 17 Influence Increases 785 | 20 570 195 Destroy 0b10 Robot/C 480 | . 340 140 Destroy 0b10 Robot/NC 50 | 20 30 . Destroy Leader 118 | . 88 30 Allied During Kill 10 | . . 10 Successful Hack 35 | . 35 . Select Force Hacks 30 | . 30 . Disable Machine 15 | . 15 . Destroy Structure 2 | . 2 . Lose Combat Pursuer 45 | . 30 15 Influence Decreases 785 | 20 451 314 Entered New Map 73 | . . 73 Time Decay 644 | 20 441 183 Lost Part 20 | . 10 10 Lost Ally 48 | . . 48 Squads Dispatched 7 | . 7 . Investigation 6 | . 6 . Extermination . | . . . Reinforcement 1 | . 1 . Assault . | . . . Garrison . | . . . Intercept . | . . . Searches Triggered . | . . . Construction Impeded . | . . . Haulers Reinforced . | . . . Active Scanning Responses . | . . . Cargo Convoy Interrupts . | . . . Stealth | -11 -10 -10 --------- Run | Yrd Mat Min Distress Signals 1 | . 1 . Communications Jammed . | . . . Distress Signals . | . . . Times Spotted 37 | . 26 11 Peak Tracking Total 6 | . 6 3 Tactical Retreats 3 | . 2 1 Traps | -11 -10 -10 ------- Run | Yrd Mat Min Traps Triggered 4 | . 4 . Indirectly . | . . . Trap Hack Attempts . | . . . Triggered . | . . . Disarmed . | . . . Reprogrammed . | . . . Reused . | . . . Traps Extracted . | . . . Installed . | . . . Triggered . | . . . Machines | -11 -10 -10 ---------- Run | Yrd Mat Min Machines Disabled 1 | . 1 . Max in Single Turn 1 | . 1 . Machines Repaired . | . . . Machines Dismantled . | . . . Machines Sabotaged . | . . . Overloaded Fab Kills . | . . . Hacking | -11 -10 -10 --------- Run | Yrd Mat Min Machines Accessed 8 | . 8 . Terminals 7 | . 7 . Fabricators . | . . . Repair Stations . | . . . Recycling Units 1 | . 1 . Scanalyzers . | . . . Garrison Access . | . . . Total Hacks 28 | . 28 . Successful 14 | . 14 . Failed 14 | . 14 . Catastrophic 1 | . 1 . Database Lockouts . | . . . Manual 27 | . 27 . Terminals 26 | . 26 . Fabricators . | . . . Repair Stations . | . . . Recycling Units 2 | . 2 . Scanalyzers . | . . . Garrison Access . | . . . Terminal Hacks 4 | . 4 . Terminal Index 1 | . 1 . Zone Layout 3 | . 3 . Fabricator Hacks . | . . . Repair Station Hacks . | . . . Recycling Unit Hacks 1 | . 1 . Retrieve Components 1 | . 1 . Scanalyzer . | . . . Garrison Access Hacks . | . . . Unauthorized Hacks 9 | . 9 . Terminals 8 | . 8 . Botnet 1 | . 1 . Skim 7 | . 7 . Fabricators . | . . . Repair Stations . | . . . Recycling Units 1 | . 1 . Tunnel 1 | . 1 . Scanalyzers . | . . . Garrison Access . | . . . Data Cores Recovered . | . . . Used . | . . . Hacking Detections 6 | . 6 . Full Trace Events . | . . . Feedback Events . | . . . Feedback Blocked . | . . . Robot Schematics Acquired . | . . . Robots Built . | . . . Authchips . | . . . Time . | . . . Total Robot Build Rating . | . . . Part Schematics Acquired . | . . . Parts Built . | . . . Authchips . | . . . Time . | . . . Total Part Build Rating . | . . . Part Studies Acquired . | . . . Parts Repaired . | . . . Time . | . . . Parts Recycled . | . . . Recycled Matter . | . . . Retrieved Matter . | . . . Retrieved Components 10 | . 10 . Parts Scanalyzed . | . . . Part Schematics Acquired . | . . . Parts Damaged . | . . . Bothacking | -11 -10 -10 ------------ Run | Yrd Mat Min Used RIF Installer . | . . . Robots Hacked . | . . . Non-combat . | . . . Combat . | . . . Robot Hacks Applied . | . . . Relay Couplers Released . | . . . Fabnet Peak Effective % . | . . . Robots Rewired . | . . . Allies Hacked . | . . . Hacks Repelled . | . . . Allies | -11 -10 -10 -------- Run | Yrd Mat Min Total Allies 3 | . . 3 Largest Group 3 | . . 3 Highest-Rated Group 40 | . . 40 Highest-Rated Ally 16 | . . 16 Total Orders . | . . . Ally Attacks 23 | . . 23 Total Damage 193 | . . 193 Kills 3 | . . 3 Allies Corrupted . | . . . Allies Melted . | . . . Intel | -11 -10 -10 ------- Run | Yrd Mat Min Active Infowar (turns) 219 | 35 184 . Terrain 1 | . 1 . Seismic 218 | 35 183 . Robot Analysis Total . | . . . Derelict Logs Recovered . | . . . Drone Launches . | . . . Drone Recoveries . | . . . Exploration | -11 -10 -10 ------------- Run | Yrd Mat Min Turns Passed 2405 | 226 1392 787 Spaces Moved 1030 | 113 606 311 Core 20 | 20 . . Treads 871 | 93 606 172 Legs . | . . . Wheels 139 | . . 139 Hover . | . . . Flight . | . . . Fastest Speed 50 | 50 160 100 Average Speed 163 | 140 160 177 Slowest Speed 240 | 160 160 240 Overloaded Moves . | . . . Propulsion Burnouts . | . . . Robots Hopped . | . . . Potential Cave-ins . | . . . Cave-ins Triggered . | . . . Exploration Rate (%) 51 | 6 92 56 Regions Visited 2 Branch Regions 1 Pre-discovered Areas 2 | . 2 . Known Exits Taken . | . . . Unknown Exits Taken 2 | 1 1 . Scrap Searched . | . . . Spaces Dug . | . . . Terrain Destroyed . | . . . Melee . | . . . Projectile . | . . . AOE . | . . . Terrain Rammed . | . . . Walls Destroyed . | . . . Machines Disabled . | . . . Actions | -11 -10 -10 --------- Run | Yrd Mat Min Total 1577 | 148 939 490 Wait 391 | . 251 140 Move 1028 | 112 605 311 Hop . | . . . Pick Up 34 | 13 17 4 Fast Attach 2 | . 2 . Attach 13 | 7 2 4 Detach . | . . . Swap 7 | . 5 2 Drop 10 | . 10 . Fire 92 | 16 47 29 Melee . | . . . Ram . | . . . Kick . | . . . Crush . | . . . Escape Stasis . | . . . Rewire . | . . . Trap . | . . . Miscellaneous . | . . . Route ------- -11/Scrapyard -10/Materials (discovered 5 exits: [*Mat x3] / [*Min] / Sub) -10/Mines (discovered 1 exit: *Sub) History --------- Turn | Location | Event 37 | -11/Scrapyard | Discovered new exit (range 15) 227 | -11/Scrapyard | Entered Materials 314 | -10/Materials | Build established: Mutant 533 | -10/Materials | Discovered new exit (range 3) 727 | -10/Materials | Derelicts attacked the area 824 | -10/Materials | Discovered new exit (range 11) 997 | -10/Materials | Core integrity fell below 50% 1222 | -10/Materials | Discovered new exit (range 7) 1294 | -10/Materials | Discovered new exit (range 15) 1382 | -10/Materials | Learned Recycling recycling unit intel 1491 | -10/Materials | Identified exit to Subcaves 1514 | -10/Materials | Learned location of 3 exits from Materials 1533 | -10/Materials | Learned location of 2 exits from Subcaves 1564 | -10/Materials | Learned 2 Storage zone layouts 1619 | -10/Materials | Entered Mines 1745 | -10/Mines | YI-UF0 nonchalantly dropped a Grenade Launcher on the ground 1781 | -10/Mines | Discovered exit to Subcaves (range 13) 1857 | -10/Mines | Core integrity fell below 20% 1869 | -10/Mines | Destroyed YI-UF0 1885 | -10/Mines | Found Prototype Storage 1971 | -10/Mines | Assisted by bots powering up and referring to "LRC-V3" 2209 | -10/Mines | Found a damaged Exp. Sensor Array with a note attached 2213 | -10/Mines | Found Prototype Device 2406 | -10/Mines | Destroyed by G-34 Mercenary with Small Laser Last Messages --------------- 02260_ Mercenary 1a suffers critical hit (Burn). 02260_ Mercenary 1a destroyed. 02269_ Trooper 1a destroyed. 02295_ Melted Aluminum Leg. 02295_ G-47 Trooper suffers critical hit (Burn). 02295_ G-47 Trooper overheating. 02298_ Destroyed Lgt. Nuclear Core. 02298_ G-47 Trooper overheating. 02300_ G-47 Trooper heat damages Imp. Heat Sink. 02303_ Particle Gun destroyed. 02305_ G-47 Trooper overheating. 02307_ Particle Gun destroyed. 02307_ Critical hit (Burn: +37). 02308_ G-47 Trooper heat spikes uncontrollably. 02309_ G-47 Trooper overheating. 02311_ G-47 Trooper heat short circuits Aluminum Leg. 02311_ G-47 Trooper overheating. 02313_ G-47 Trooper heat damages Broken Aluminum Leg, Particle Gun. Map ----- +----------------------------------------------------+ | | | | | | | | | | | | | | | | | | | ???????????????????????????????????? | | ???????????????????????????????????? | | ???????????????????????????????????? | | ???????????????????????????????????? | | ???????????????????????????????????? | | ???????????????????????????????????? | | ???????????????????????????????????? | | ???????????????????????????????????? | | ???????????????????????????????????? | | ?????????????????? ????????????????? | | ??????????###????? ????????????????? | | ?????????? #????? ????????????????? | | ??????????# #????? ????????????????? | | ?????????## ##???? ????????????????? | | ????????## ##??? ????????????????? | | ????????# ##?? #??### ?????????? | | ????????# @ ### ????????? | | ????????# gt#???????????????? | | ???????## #### #???????????????? | | ???????# ##??# #???????????????? | | ???????# ##??# #???????????????? | | ???????+ # ##?# #???????????????? | | ???????+ # t ### #???????????????? | | ???????# # ## #???????????????? | | ???????# # ####????????????? | | ???????## #????????????? | | ????????# ### #????????????? | | ????????# ##?# #????????????? | | ????????## ####??# #????????????? | | ?????#########?????# #????????????? | | ????## ##?????????# #????????????? | | ???## ##????????# #????????????? | | ??## ##???##### #######??????? | | ??# #?### ## #? | | ??# #### ### # #######??????? | | ??## ##?##%## ####????????? | | ???# #??#%!%* ##???????? | | ???# ####[#### ###### #???????? | | ???# %#??####????#### #???????? | | ???### ## #?????????????# ######??? | | ?????# ## #?????????????# ###? | +----------------------------------------------------+ Best States ------------- Heat Dissipation 47 Energy Generation 16 Energy Capacity 290 Matter Stores 300 Matter Capacity 300 Sight Range 16 Terrain Scan Range 16 Terrain Scan Density 10 Evasion (%) 50 Recoil Reduction 2 Item Schematics ----------------- None Robot Schematics ------------------ None Fabricated ------------ Nothing Repaired ---------- Nothing Studied --------- None Alien Tech Used ----------------- None Achievements -------------- None Challenges ------------ None Game ------ Seed ModifiedMolecularFocus Manual? 0 Play Time 00:11:32 Cumulative 565.7 hours Start 2025.11.27 @ 23:13:03 End 2025.11.28 @ 13:02:08 Sessions 2 Manual Loads 0 Difficulty Rogue Special Mode None Game No. 731 Rogue 731 Adventurer 0 Explorer 0 Win Type - Total 20 Types 9/1/2/2/2/0/2/2/0/0 Lore% 93 Gallery% 87 Achievement% 72 Wizard Run 0 Options --------- Layout 2 ASCII 0 Keyboard 0 Movement Mouse Keybinds 0 Fullscreen 1 Font 24/Terminus Map View 50x44 Zoom Use 0% Tactical HUD 1 Map Filters NONE Filters NONE Steam 1 RUN: c5f816b2-8697-4a40-88ee-f7751c6d1021